bitfinex-derivatives/quotes_SOLF0:USTF0_20230105
["timestamp","ask_amount","ask_price","bid_price","bid_amount"]
[1672943117249,37.991,13.166,13.159,10.0]
[1672943117454,10.0,13.165,13.159,10.0]
[1672943117980,37.998,13.164,13.159,10.0]
[1672943118190,10.0,13.163,13.159,10.0]
[1672943118500,10.0,13.163,13.159,32.73]
[1672943118719,37.998,13.164,13.159,32.73]
[1672943119878,37.998,13.164,13.16,38.005]
[1672943120088,37.998,13.164,13.161,10.0]
[1672943120302,37.994,13.165,13.161,10.0]
[1672943121874,37.994,13.165,13.159,22.73]
[1672943122504,10.0,13.164,13.159,22.73]
[1672943122818,38.0,13.163,13.16,38.006]
[1672943123241,10.0,13.162,13.158,10.0]
[1672943123451,10.0,13.162,13.157,22.88447667]
[1672943123452,48.002,13.162,13.157,22.88447667]
[1672943123656,10.0,13.162,13.157,22.88447667]
[1672943123972,10.0,13.162,13.159,38.01]
[1672943124393,48.004,13.162,13.159,38.01]
[1672943124606,10.0,13.162,13.159,38.01]
[1672943125445,10.06822481,13.164,13.159,38.01]
[1672943125650,38.0,13.163,13.158,38.012]
[1672943125868,10.0,13.162,13.158,38.012]
[1672943126077,10.0,13.162,13.157,0.06447667]
[1672943126699,48.003,13.162,13.157,38.08047667]
[1672943127332,48.003,13.162,13.157,0.06447667]
[1672943130175,38.003,13.162,13.157,10.06447667]
[1672943130700,38.003,13.162,13.157,0.06447667]
[1672943132486,10.0,13.161,13.157,0.06447667]
[1672943132693,38.008,13.16,13.157,0.06447667]
[1672943133008,38.008,13.16,13.156,22.73]
[1672943133642,38.008,13.16,13.156,60.748]
[1672943136687,38.06722481,13.164,13.159,22.8]
[1672943136903,38.06722481,13.164,13.16,10.0]
[1672943137219,0.06822481,13.164,13.16,48.006]
[1672943141419,38.06722481,13.164,13.16,48.006]
[1672943141629,38.06722481,13.164,13.16,38.006]
[1672943142888,38.06722481,13.164,13.158,22.71]
[1672943144572,38.06722481,13.164,13.159,38.008]
[1672943144783,38.06722481,13.164,13.16,10.0]
[1672943145197,38.06722481,13.164,13.159,48.008]
[1672943145516,38.06722481,13.164,13.157,10.06258287]
[1672943146358,38.06722481,13.164,13.158,38.012]
[1672943146674,38.06722481,13.164,13.159,10.0]
[1672943148770,38.06722481,13.164,13.159,48.01]
[1672943149092,0.06822481,13.164,13.159,70.83]
[1672943149508,38.06622481,13.164,13.159,70.83]
[1672943152552,0.06822481,13.164,13.159,70.83]
[1672943152767,0.00822481,13.164,13.163,22.71]
[1672943152975,75.96,13.17,13.163,32.71]
[1672943153186,75.96,13.17,13.164,10.0]
[1672943153396,37.986,13.168,13.165,37.992]
[1672943153713,37.986,13.168,13.166,10.0]
[1672943154235,37.986,13.168,13.165,37.992]
[1672943156027,37.986,13.168,13.163,22.71]
[1672943157389,37.986,13.168,13.164,10.0]
[1672943158018,37.986,13.168,13.164,47.995]
[1672943159802,37.982,13.169,13.164,47.995]
[1672943160012,0.06942023,13.171,13.168,10.0]
[1672943160224,0.06019036,13.174,13.168,10.0]
[1672943160434,37.977,13.171,13.168,10.0]
[1672943160956,10.0,13.172,13.168,47.984]
[1672943161170,75.943,13.173,13.168,47.984]
[1672943161381,0.06019036,13.174,13.168,47.984]
[1672943161590,37.971,13.173,13.168,47.984]
[1672943161906,10.0,13.172,13.168,47.984]
[1672943162217,37.976,13.171,13.168,47.984]
[1672943162428,37.976,13.171,13.168,37.984]
[1672943163272,37.976,13.171,13.167,22.82]
[1672943164209,10.0,13.17,13.165,22.77854896]
[1672943164419,37.983,13.169,13.165,22.77854896]
[1672943164630,37.983,13.169,13.165,0.06854896]
[1672943164839,10.0,13.168,13.165,0.06854896]
[1672943165049,10.0,13.168,13.163,32.8]
[1672943165897,47.986,13.168,13.165,37.992]
[1672943166108,37.986,13.168,13.166,10.0]
[1672943166533,37.986,13.168,13.164,10.0]
[1672943167370,37.986,13.168,13.166,37.99]
[1672943168314,0.06873311,13.171,13.167,10.0]
[1672943168527,0.06873311,13.171,13.167,32.82]
[1672943169155,37.98,13.17,13.167,32.82]
[1672943169882,37.98,13.17,13.167,70.807]
[1672943170417,38.04573311,13.171,13.167,70.807]
[1672943171259,0.06873311,13.171,13.169,22.71]
[1672943171465,593.82,13.178,13.17,10.0]
[1672943171466,0.06179214,13.175,13.17,10.0]
[1672943171677,22.82,13.178,13.17,10.0]
[1672943171991,37.964,13.175,13.17,10.0]
[1672943173040,37.964,13.175,13.172,10.0]
[1672943174516,37.964,13.175,13.17,10.0]
[1672943174934,37.964,13.175,13.172,37.972]
[1672943178086,37.965,13.175,13.172,37.972]
[1672943178821,37.90397705,13.175,13.172,37.972]
[1672943179037,37.90397705,13.175,13.173,10.0]
[1672943179239,37.90397705,13.175,13.173,47.969]
[1672943179555,37.963,13.176,13.173,47.969]
[1672943180399,37.962,13.176,13.173,47.969]
[1672943182074,0.07007312,13.177,13.173,70.789]
[1672943182292,75.891,13.182,13.175,22.82]
[1672943182504,75.891,13.182,13.176,10.0]
[1672943182919,37.948,13.181,13.177,22.8]
[1672943183129,37.948,13.181,13.176,10.0]
[1672943183130,47.948,13.181,13.176,10.0]
[1672943184075,37.948,13.181,13.177,37.958]
[1672943184384,37.948,13.181,13.176,10.0]
[1672943185021,37.948,13.181,13.177,37.957]
[1672943185233,37.948,13.181,13.176,10.0]
[1672943186914,37.948,13.181,13.177,37.958]
[1672943187229,37.948,13.181,13.174,10.06679759]
[1672943187435,10.0,13.18,13.174,10.06679759]
[1672943187640,37.955,13.179,13.174,10.06679759]
[1672943188281,22.82,13.177,13.174,0.06679759]
[1672943188590,47.961,13.176,13.171,0.06466571]
[1672943188803,10.0,13.175,13.169,0.0668556]
[1672943189962,37.97,13.174,13.17,37.978]
[1672943190173,37.97,13.174,13.171,10.0]
[1672943191117,37.97,13.174,13.171,47.975]
[1672943192272,37.97,13.174,13.171,10.0]
[1672943192482,37.97,13.174,13.169,22.7768556]
[1672943192692,37.97,13.174,13.169,0.0668556]
[1672943193956,37.97,13.174,13.169,38.0468556]
[1672943194480,37.97,13.174,13.169,0.0668556]
[1672943197108,98.738,13.177,13.169,38.0478556]
[1672943197421,22.82,13.177,13.169,38.0478556]
[1672943197632,10.0,13.176,13.169,38.0478556]
[1672943198796,10.0,13.173,13.169,38.0478556]
[1672943199520,37.968,13.174,13.169,38.0478556]
[1672943199945,37.974,13.172,13.169,38.0478556]
[1672943200157,37.974,13.172,13.169,37.981]
[1672943201522,37.974,13.172,13.167,22.82]
[1672943201735,37.974,13.172,13.168,37.983]
[1672943202155,37.974,13.172,13.167,22.82]
[1672943202362,37.974,13.172,13.166,10.07068729]
[1672943203411,37.974,13.172,13.167,37.987]
[1672943203625,37.974,13.172,13.168,10.0]
[1672943204882,37.974,13.172,13.168,47.982]
[1672943205097,37.971,13.173,13.168,70.782]
[1672943205937,113.912,13.173,13.168,70.782]
[1672943206358,113.912,13.173,13.168,32.8]
[1672943206563,10.0,13.172,13.166,22.89068729]
[1672943206781,113.935,13.171,13.166,0.07068729]
[1672943206991,10.0,13.17,13.166,0.07068729]
[1672943207303,113.947,13.169,13.166,0.07068729]
[1672943207511,10.0,13.168,13.163,10.06267354]
[1672943207718,10.06807738,13.172,13.166,22.8]
[1672943207933,0.06807738,13.172,13.167,10.0]
[1672943208460,0.06807738,13.172,13.168,22.71]
[1672943208669,0.06807738,13.172,13.169,47.981]
[1672943208670,38.04207738,13.172,13.169,47.981]
[1672943208877,37.974,13.172,13.169,47.981]
[1672943209087,37.974,13.172,13.169,37.981]
[1672943214765,571.06513921,13.175,13.169,37.981]
[1672943214979,75.99513921,13.175,13.17,10.0]
[1672943215186,75.99513921,13.175,13.171,37.974]
[1672943215500,38.03113921,13.175,13.172,10.0]
[1672943215711,37.966,13.175,13.172,10.0]
[1672943216661,37.966,13.175,13.17,32.8]
[1672943216860,37.966,13.175,13.172,37.971]
[1672943217071,37.959,13.177,13.173,10.0]
[1672943217386,10.0,13.176,13.173,10.0]
[1672943217805,10.0,13.176,13.172,22.71]
[1672943218014,37.964,13.175,13.172,60.681]
[1672943220865,37.963,13.176,13.172,60.681]
[1672943222652,37.96,13.177,13.172,60.681]
[1672943223279,0.06303211,13.178,13.172,60.681]
[1672943223489,0.06303211,13.178,13.173,10.0]
[1672943223700,0.06303211,13.178,13.174,60.786]
[1672943223909,0.06303211,13.178,13.175,10.0]
[1672943224125,37.95,13.18,13.175,10.0]
[1672943225591,0.06883934,13.181,13.176,60.781]
[1672943226011,0.06883934,13.181,13.177,10.0]
[1672943227276,113.91183934,13.181,13.177,47.958]
[1672943227692,38.01683934,13.181,13.177,47.958]
[1672943228429,38.01683934,13.181,13.177,37.958]
[1672943228956,0.06883934,13.181,13.178,10.0]
[1672943229165,37.944,13.182,13.178,10.0]
[1672943229586,37.943,13.183,13.178,10.0]
[1672943229797,0.06651629,13.184,13.179,37.953]
[1672943230114,22.82,13.189,13.18,10.0]
[1672943230635,10.0,13.188,13.18,10.0]
[1672943231897,37.932,13.187,13.182,37.942]
[1672943232101,22.88614725,13.189,13.183,10.0]
[1672943232316,0.06614725,13.189,13.183,10.0]
[1672943232633,0.06614725,13.189,13.183,32.8]
[1672943233045,37.99214725,13.189,13.184,37.936]
[1672943234000,37.99214725,13.189,13.182,0.06278781]
[1672943234001,37.932,13.187,13.182,0.06278781]
[1672943234315,10.0,13.186,13.182,0.06278781]
[1672943234522,37.936,13.185,13.182,0.06278781]
[1672943234733,10.0,13.184,13.179,0.06919578]
[1672943234943,37.943,13.183,13.18,37.949]
[1672943235576,10.0,13.182,13.18,37.949]
[1672943235891,37.945,13.182,13.179,0.06919578]
[1672943236101,37.945,13.182,13.178,32.8]
[1672943236732,37.945,13.182,13.178,60.755]
[1672943236943,37.945,13.182,13.176,22.88929193]
[1672943238204,37.944,13.182,13.178,37.955]
[1672943238515,10.0,13.181,13.178,37.955]
[1672943239253,47.947,13.181,13.178,37.955]
[1672943239462,47.947,13.181,13.176,22.88929193]
[1672943239672,22.71,13.18,13.176,0.06929193]
[1672943239881,123.86,13.179,13.171,22.82]
[1672943240086,10.0,13.181,13.174,22.71]
[1672943240510,37.953,13.18,13.174,37.966]
[1672943240719,10.0,13.179,13.172,32.8]
[1672943241244,47.955,13.179,13.172,32.8]
[1672943242086,37.955,13.179,13.172,32.8]
[1672943242507,37.955,13.179,13.174,37.967]
[1672943242820,37.955,13.179,13.175,10.0]
[1672943243974,37.955,13.179,13.176,37.961]
[1672943244186,37.955,13.179,13.177,10.0]
[1672943244397,37.951,13.18,13.177,10.0]
[1672943244711,0.06340439,13.181,13.177,10.0]
[1672943245874,0.06340439,13.181,13.177,47.958]
[1672943248913,37.931,13.187,13.18,72.71]
[1672943249122,113.755,13.192,13.184,22.82]
[1672943249337,10.0,13.191,13.185,10.0]
[1672943249549,47.919,13.191,13.185,10.0]
[1672943250072,47.919,13.191,13.185,47.935]
[1672943250696,47.919,13.191,13.185,10.0]
[1672943251227,47.919,13.191,13.183,10.06848148]
[1672943251752,37.919,13.191,13.183,10.06848148]
[1672943251964,37.919,13.191,13.185,37.935]
[1672943252170,37.919,13.191,13.186,10.0]
[1672943253114,37.919,13.191,13.186,47.931]
[1672943253854,22.71,13.192,13.186,47.931]
[1672943253855,60.627,13.192,13.186,47.931]
[1672943254686,136.458,13.192,13.186,47.931]
[1672943255001,136.458,13.192,13.184,85.877]
[1672943255321,37.924,13.189,13.184,10.0]
[1672943255743,10.0,13.188,13.184,10.0]
[1672943256164,10.0,13.191,13.186,10.0]
[1672943257111,37.917,13.192,13.186,10.0]
[1672943257317,22.88718483,13.193,13.186,47.931]
[1672943257532,0.06718483,13.193,13.186,70.661]
[1672943257950,706.85958407,13.228,13.186,70.661]
[1672943257951,151.361,13.219,13.192,22.82]
[1672943258165,44.3657,13.212,13.196,22.82]
[1672943258373,22.82,13.206,13.197,10.0]
[1672943258579,47.881,13.205,13.197,10.0]
[1672943259112,10.0,13.204,13.197,10.0]
[1672943259318,10.0,13.204,13.196,22.88417894]
[1672943259522,22.82,13.2,13.196,0.06417894]
[1672943259737,22.82,13.197,13.196,0.00417894]
[1672943259948,32.82,13.197,13.186,10.0]
[1672943260162,22.82,13.195,13.186,10.0]
[1672943260578,22.82,13.195,13.188,37.925]
[1672943260785,10.06271996,13.196,13.189,10.0]
[1672943260995,0.06271996,13.196,13.189,10.0]
[1672943261632,0.06271996,13.196,13.191,37.918]
[1672943261841,0.06271996,13.196,13.192,10.0]
[1672943262263,0.06271996,13.196,13.189,10.0]
[1672943263310,0.06271996,13.196,13.192,10.0]
[1672943263519,0.06271996,13.196,13.189,10.0]
[1672943264360,0.06271996,13.196,13.192,10.0]
[1672943264677,0.06271996,13.196,13.193,10.0]
[1672943264891,22.77479026,13.199,13.193,10.0]
[1672943265196,10.0,13.198,13.193,10.0]
[1672943265405,0.06479026,13.199,13.194,60.73]
[1672943265621,0.06479026,13.199,13.195,10.0]
[1672943266148,0.06479026,13.199,13.194,22.82]
[1672943266562,0.06479026,13.199,13.193,85.824]
[1672943268248,0.06479026,13.199,13.195,37.906]
[1672943268569,0.06479026,13.199,13.196,10.0]
[1672943268778,32.88380005,13.202,13.196,10.0]
[1672943270362,32.88380005,13.202,13.194,10.0]
[1672943270568,32.88380005,13.202,13.196,37.902]
[1672943270777,32.88380005,13.202,13.197,10.0]
[1672943271935,70.77280005,13.202,13.197,10.0]
[1672943272357,60.77280005,13.202,13.197,10.0]
[1672943272674,22.88380005,13.202,13.197,10.0]
[1672943273192,60.77080005,13.202,13.197,10.0]
[1672943273618,37.95080005,13.202,13.197,10.0]
[1672943273927,37.95080005,13.202,13.194,10.0]
[1672943274878,37.95080005,13.202,13.196,37.904]
[1672943275088,37.95080005,13.202,13.197,10.0]
[1672943276033,37.95080005,13.202,13.194,47.907]
[1672943276243,10.0,13.201,13.194,47.907]
[1672943276767,10.06380005,13.202,13.194,47.907]
[1672943278025,47.95180005,13.202,13.194,47.907]
[1672943278548,37.95180005,13.202,13.194,47.907]
[1672943278969,37.95180005,13.202,13.194,37.907]
[1672943279184,10.0,13.201,13.193,0.07051926]
[1672943279391,47.89,13.201,13.193,0.07051926]
[1672943280452,47.95080005,13.202,13.194,37.909]
[1672943280667,47.95080005,13.202,13.195,10.0]
[1672943281711,37.95080005,13.202,13.195,10.0]
[1672943282244,113.72480005,13.202,13.195,10.0]
[1672943282666,113.72480005,13.202,13.195,47.905]
[1672943282865,113.72480005,13.202,13.195,37.905]
[1672943283083,10.0,13.201,13.195,37.905]
[1672943283292,37.895,13.2,13.195,37.905]
[1672943283605,10.0,13.199,13.195,37.905]
[1672943283818,37.899,13.198,13.195,37.905]
[1672943284028,10.0,13.197,13.193,0.07051926]
[1672943285289,37.904,13.197,13.193,37.98251926]
[1672943285500,10.0,13.196,13.193,37.98251926]
[1672943285816,10.0,13.198,13.193,37.912]
[1672943286022,75.86207644,13.199,13.193,37.912]
[1672943286232,0.06607644,13.199,13.195,37.905]
[1672943286442,0.06607644,13.199,13.196,10.0]
[1672943286653,85.781,13.201,13.196,10.0]
[1672943286861,37.897,13.199,13.196,10.0]
[1672943287077,37.897,13.199,13.194,10.0]
[1672943287500,37.897,13.199,13.196,10.0]
[1672943287913,37.894,13.2,13.196,10.0]
[1672943289181,37.893,13.2,13.196,37.903]
[1672943289499,10.0,13.199,13.196,37.903]
[1672943289705,37.898,13.198,13.193,10.06895535]
[1672943289916,10.0,13.197,13.193,0.06895535]
[1672943290967,47.902,13.197,13.194,37.908]
[1672943291594,37.902,13.197,13.193,0.06895535]
[1672943291910,10.0,13.199,13.193,0.06895535]
[1672943292121,10.0,13.199,13.193,37.97995535]
[1672943292545,10.0,13.199,13.193,0.06895535]
[1672943292752,37.902,13.197,13.193,0.06895535]
[1672943292964,10.0,13.196,13.193,0.06895535]
[1672943293281,47.905,13.196,13.193,37.913]
[1672943293696,47.905,13.196,13.19,0.06655946]
[1672943295057,47.905,13.196,13.19,37.98655946]
[1672943295487,37.905,13.196,13.19,0.06655946]
[1672943296015,10.0,13.195,13.19,0.06655946]
[1672943296327,37.911,13.194,13.19,37.98755946]
[1672943296537,10.0,13.193,13.182,45.38]
[1672943296750,37.922,13.19,13.182,45.38]
[1672943296959,10.0,13.189,13.183,10.0]
[1672943297170,10.0,13.189,13.185,37.935]
[1672943297374,47.925,13.189,13.185,37.935]
[1672943297581,10.0,13.189,13.185,37.935]
[1672943297792,0.0671422,13.192,13.186,10.0]
[1672943298220,0.0671422,13.192,13.188,10.0]
[1672943298958,0.0671422,13.192,13.186,10.0]
[1672943299167,0.0671422,13.192,13.185,40.36931814]
[1672943300216,37.9841422,13.192,13.187,37.928]
[1672943300426,0.0671422,13.192,13.19,50.0]
[1672943300637,0.0668695,13.196,13.191,40.3]
[1672943300847,10.06686554,13.198,13.192,10.0]
[1672943301058,37.902,13.197,13.192,10.0]
[1672943301373,10.0,13.196,13.193,37.91]
[1672943301584,37.91,13.194,13.189,0.0609726]
[1672943302000,10.0,13.193,13.189,0.0609726]
[1672943302206,37.916,13.192,13.189,0.0609726]
[1672943302419,10.0,13.191,13.186,30.33323212]
[1672943302630,10.0,13.191,13.188,37.925]
[1672943303058,85.826,13.193,13.189,10.0]
[1672943303263,37.92,13.191,13.189,10.0]
[1672943303473,37.92,13.191,13.188,47.925]
[1672943303684,37.92,13.191,13.188,37.925]
[1672943303895,85.826,13.193,13.188,37.925]
[1672943304317,75.826,13.193,13.188,37.925]
[1672943304528,10.0,13.194,13.188,37.925]
[1672943304740,37.917,13.192,13.188,37.925]
[1672943304949,10.0,13.191,13.188,37.925]
[1672943305370,10.0,13.194,13.188,37.925]
[1672943305578,37.915,13.193,13.188,37.925]
[1672943305895,10.0,13.192,13.188,37.925]
[1672943306950,37.919,13.191,13.188,37.925]
[1672943307154,37.919,13.191,13.186,30.33323212]
[1672943309047,37.919,13.191,13.187,37.927]
[1672943309361,37.919,13.191,13.188,10.0]
[1672943309675,37.919,13.191,13.186,30.33323212]
[1672943309877,10.0,13.192,13.186,30.33323212]
[1672943310090,10.0,13.192,13.188,37.926]
[1672943310936,37.918,13.191,13.188,37.926]
[1672943311564,10.0,13.19,13.186,30.33323212]
[1672943311777,37.925,13.189,13.186,0.06323212]
[1672943311986,10.0,13.188,13.183,30.33466639]
[1672943312828,37.931,13.187,13.184,37.937]
[1672943313142,10.0,13.186,13.184,37.937]
[1672943314397,37.931,13.187,13.184,37.937]
[1672943314814,10.0,13.186,13.183,0.06466639]
[1672943315024,37.938,13.185,13.18,0.06423521]
[1672943315233,113.81,13.185,13.18,0.06423521]
[1672943315450,10.0,13.186,13.18,0.06423521]
[1672943315661,10.0,13.186,13.18,38.01423521]
[1672943316501,47.933,13.186,13.18,38.01423521]
[1672943317969,47.933,13.186,13.18,0.06423521]
[1672943320070,30.3,13.181,13.164,75.99]
[1672943320280,30.17,13.173,13.161,30.3]
[1672943320485,30.17,13.174,13.163,30.01]
[1672943320913,10.0,13.173,13.163,30.01]
[1672943321225,10.06453166,13.173,13.165,30.02]
[1672943321440,37.974,13.172,13.166,37.99]
[1672943321650,10.06453166,13.173,13.166,68.29]
[1672943321860,10.06453166,13.173,13.168,30.3]
[1672943322595,0.06453166,13.173,13.168,68.284]
[1672943322807,3.166e-05,13.173,13.172,30.02]
[1672943323026,10.0,13.179,13.172,30.02]
[1672943323228,10.0,13.179,13.174,30.27]
[1672943323546,37.95,13.181,13.175,10.0]
[1672943323757,37.951,13.18,13.174,30.27]
[1672943323958,47.951,13.18,13.174,30.27]
[1672943324170,10.0,13.179,13.174,30.27]
[1672943325125,47.953,13.179,13.174,30.27]
[1672943325755,47.954,13.179,13.174,30.27]
[1672943326704,10.0,13.179,13.174,30.27]
[1672943327650,47.954,13.179,13.172,30.33533838]
[1672943328804,47.954,13.179,13.172,68.30733838]
[1672943330172,0.06879457,13.182,13.175,30.01]
[1672943330378,0.06879457,13.182,13.176,30.3]
[1672943330589,0.06879457,13.182,13.177,10.0]
[1672943330799,38.01379457,13.182,13.177,10.0]
[1672943331959,0.06879457,13.182,13.177,10.0]
[1672943332692,0.06879457,13.182,13.177,37.957]
[1672943332902,0.06879457,13.182,13.176,30.3]
[1672943333105,0.06879457,13.182,13.175,30.36215158]
[1672943333320,0.06879457,13.182,13.175,0.06215158]
[1672943333956,38.01379457,13.182,13.175,38.02615158]
[1672943335109,38.01379457,13.182,13.175,68.32615158]
[1672943335320,38.01379457,13.182,13.176,10.0]
[1672943337002,38.01379457,13.182,13.177,37.956]
[1672943337317,38.01379457,13.182,13.178,10.0]
[1672943338684,38.01379457,13.182,13.176,10.0]
[1672943338898,38.01379457,13.182,13.177,37.958]
[1672943339106,113.90279457,13.182,13.175,30.36215158]
[1672943340475,10.0,13.181,13.175,30.36215158]
[1672943340681,113.853,13.18,13.175,0.06215158]
[1672943340887,10.0,13.179,13.175,0.06215158]
[1672943341629,37.956,13.178,13.175,0.06215158]
[1672943341840,10.0,13.181,13.175,10.0]
[1672943343101,37.953,13.179,13.175,47.963]
[1672943343310,10.0,13.181,13.175,47.963]
[1672943343833,10.06879457,13.182,13.175,47.963]
[1672943344884,37.952,13.18,13.175,47.963]
[1672943346252,0.06879457,13.182,13.175,47.963]
[1672943347930,38.01379457,13.182,13.175,47.963]
[1672943348458,37.942,13.183,13.182,0.11567411]
[1672943350453,37.939,13.184,13.182,0.11567411]
[1672943351078,37.939,13.184,13.182,38.05967411]
[1672943351505,37.937,13.185,13.182,38.05967411]
[1672943356238,37.937,13.185,13.182,0.11567411]
[1672943362338,37.937,13.185,13.182,38.05967411]
[1672943362544,0.06811952,13.187,13.183,10.0]
[1672943362754,0.06811952,13.187,13.183,55.23]
[1672943363073,47.923,13.19,13.184,10.0]
[1672943363278,47.923,13.19,13.183,55.23]
[1672943363279,10.0,13.189,13.183,55.23]
[1672943363489,37.929,13.188,13.182,0.11567411]
[1672943363701,10.0,13.187,13.182,0.11567411]
[1672943364544,113.803,13.186,13.182,0.11567411]
[1672943364751,10.0,13.185,13.182,0.11567411]
[1672943365281,37.938,13.184,13.18,0.06637598]
[1672943365492,10.0,13.183,13.18,0.06637598]
[1672943365805,10.0,13.183,13.176,10.0]
[1672943365806,10.0,13.183,13.179,37.95]
[1672943366226,37.944,13.182,13.179,37.95]
[1672943366646,10.0,13.181,13.179,37.95]
[1672943367586,37.944,13.182,13.179,37.95]
[1672943367801,37.943,13.183,13.179,37.95]
[1672943368117,10.0,13.182,13.179,37.95]
[1672943369692,47.944,13.182,13.177,0.06578183]
[1672943370954,47.944,13.182,13.177,38.02378183]
[1672943373264,37.944,13.182,13.177,38.02378183]
[1672943375158,37.944,13.182,13.178,10.0]
[1672943375997,106.27146458,13.186,13.179,37.952]
[1672943376208,10.0,13.185,13.18,10.0]
[1672943376417,37.943,13.183,13.18,10.0]
[1672943376734,37.943,13.183,13.178,85.911]
[1672943377047,10.0,13.182,13.178,75.911]
[1672943377258,47.945,13.182,13.18,37.948]
[1672943377678,37.945,13.182,13.18,37.948]
[1672943379881,37.945,13.182,13.177,0.06578183]
[1672943380098,37.945,13.182,13.178,37.954]
[1672943385982,10.0,13.181,13.178,37.954]
[1672943386188,10.0,13.181,13.177,0.06578183]
[1672943386399,85.873,13.185,13.177,0.06578183]
[1672943387343,37.94,13.184,13.178,37.954]
[1672943387553,10.0,13.183,13.179,10.0]
[1672943388188,37.945,13.182,13.177,0.06578183]
[1672943388398,10.0,13.181,13.177,0.06578183]
[1672943388603,10.0,13.181,13.178,37.954]
[1672943389662,47.948,13.181,13.178,37.954]
[1672943390078,47.948,13.181,13.177,0.06578183]
[1672943391656,37.948,13.181,13.177,0.06578183]
[1672943393023,37.948,13.181,13.177,38.02378183]
[1672943394598,10.0,13.18,13.177,38.02378183]
[1672943394804,37.953,13.179,13.175,30.11]
[1672943395015,10.0,13.178,13.175,30.11]
[1672943395963,47.957,13.178,13.176,37.961]
[1672943397013,47.957,13.178,13.175,68.072]
[1672943397225,47.957,13.178,13.175,37.962]
[1672943398795,47.957,13.178,13.174,0.06925551]
[1672943399011,47.957,13.178,13.175,37.964]
[1672943400368,37.957,13.178,13.175,37.964]
[1672943401945,37.957,13.178,13.174,22.83925551]
[1672943402581,37.956,13.178,13.174,22.83925551]
[1672943403947,37.953,13.179,13.174,60.80525551]
[1672943408039,10.0,13.182,13.174,60.80525551]
[1672943408255,0.06034582,13.183,13.177,22.77]
[1672943408671,0.06034582,13.183,13.178,10.0]
[1672943409091,0.06034582,13.183,13.178,32.77]
[1672943409939,0.06034582,13.183,13.178,70.723]
[1672943410460,113.88634582,13.183,13.178,10.0]
[1672943410664,113.88634582,13.183,13.177,22.77]
[1672943411093,113.88634582,13.183,13.178,37.955]
[1672943411408,38.00334582,13.183,13.179,10.0]
[1672943412248,38.00334582,13.183,13.177,22.77]
[1672943412460,38.00334582,13.183,13.178,37.955]
[1672943412664,38.00334582,13.183,13.179,10.0]
[1672943413296,38.00334582,13.183,13.177,98.686]
[1672943413928,38.00334582,13.183,13.179,37.952]